bitfinex-derivatives/quotes_ETHF0:USTF0_20250308
["timestamp","ask_amount","ask_price","bid_price","bid_amount"]
[1741425014226,3.2078,2135.6,2135.4,1.8651]
[1741425014429,4.1444,2135.6,2135.4,1.8651]
[1741425014823,3.2078,2135.6,2135.4,1.8651]
[1741425015024,4.14439,2135.6,2135.4,2.80174]
[1741425016125,0.93662,2135.6,2135.4,1.8651]
[1741425016324,1.9785,2135.8,2135.4,1.8651]
[1741425016325,0.93662,2135.5,2135.4,1.8651]
[1741425016519,0.6309,2135.5,2135.4,1.8651]
[1741425018328,1.56752,2135.5,2135.4,1.8651]
[1741425019333,0.6309,2135.5,2135.2,0.00703152]
[1741425019631,0.6309,2135.5,2135.2,4.55213152]
[1741425019827,0.6309,2135.5,2135.3,1.5754]
[1741425020826,1.3245,2135.8,2135.3,0.6387]
[1741425021032,0.6519,2135.7,2135.4,0.93666]
[1741425021535,0.6519,2135.7,2135.5,0.93661]
[1741425021831,2.6692,2135.8,2135.3,0.6387]
[1741425022019,0.6523,2135.9,2135.8,0.93649]
[1741425022626,3.8417,2136.2,2136.0,0.93639]
[1741425022833,5.8577,2136.2,2136.0,0.93639]
[1741425023228,5.8577,2136.2,2135.9,0.93643]
[1741425023828,5.8577,2136.2,2136.0,0.93639]
[1741425024427,5.8577,2136.2,2135.6,1.9026]
[1741425024936,3.8417,2136.2,2136.0,0.93637]
[1741425025331,3.8417,2136.2,2135.6,1.9026]
[1741425025531,3.8417,2136.2,2135.8,3.2078]
[1741425025732,3.8417,2136.2,2136.1,0.93636]
[1741425028532,0.6339,2136.2,2136.1,0.93636]
[1741425032127,3.2078,2136.6,2136.1,3.2078]
[1741425032435,0.624,2136.8,2136.7,0.93609]
[1741425032631,0.624,2136.8,2136.7,4.14389]
[1741425033127,3.2437,2137.1,2136.7,3.2078]
[1741425033333,3.8677,2137.1,2137.0,0.93596]
[1741425033635,3.8677,2137.1,2136.9,0.93599]
[1741425033838,3.2606,2137.1,2136.9,0.93597]
[1741425034031,1.2446,2137.1,2136.9,0.93597]
[1741425034639,0.93597,2137.0,2136.7,3.2078]
[1741425034938,0.93601,2136.9,2136.5,4.83248152]
[1741425035128,0.616,2136.8,2136.5,4.83248152]
[1741425035331,1.2774,2136.8,2136.5,3.89633152]
[1741425035643,0.6206,2137.1,2136.7,3.2078]
[1741425035937,1.282,2137.1,2136.6,0.93612]
[1741425036139,0.93598,2137.0,2136.6,0.93612]
[1741425036631,1.282,2137.1,2136.6,0.93612]
[1741425036836,0.93602,2136.9,2136.6,0.93612]
[1741425037038,0.93598,2137.0,2136.7,0.93608]
[1741425037341,1.282,2137.1,2136.7,0.93608]
[1741425037732,0.93601,2136.9,2136.5,3.89633152]
[1741425038026,1.282,2137.1,2136.5,3.89633152]
[1741425038235,0.93606,2136.8,2136.6,0.93612]
[1741425038538,0.93614,2136.6,2136.5,0.00703152]
[1741425039836,2.20943,2136.7,2136.5,0.00703152]
[1741425041341,0.93607,2136.8,2136.6,0.93614]
[1741425041543,0.93607,2136.8,2136.7,0.6097]
[1741425042134,0.93607,2136.8,2136.6,1.279]
[1741425042444,1.60169,2136.7,2136.6,1.279]
[1741425042646,0.6656,2136.7,2136.6,1.279]
[1741425043241,0.6656,2136.7,2136.5,0.61673152]
[1741425043439,1.60172,2136.7,2136.5,0.00703152]
[1741425043639,0.6656,2136.7,2136.5,0.00703152]
[1741425043942,0.6656,2136.7,2136.5,0.94319152]
[1741425044339,0.6656,2136.7,2136.6,0.6253]
[1741425044541,0.6656,2136.7,2136.6,1.56144]
[1741425045446,1.60169,2136.7,2136.6,0.6253]
[1741425045645,0.93614,2136.6,2136.5,0.00703152]
[1741425046147,2.24401,2136.7,2136.5,0.00703152]
[1741425047648,1.3079,2136.7,2136.5,0.00703152]
[1741425047950,2.24403,2136.7,2136.5,0.00703152]
[1741425049951,0.93614,2136.6,2136.5,0.00703152]
[1741425050353,1.57534,2136.6,2136.5,0.00703152]
[1741425052451,0.93636,2136.1,2136.0,3.2078]
[1741425052649,0.93635,2136.2,2136.0,3.2078]
[1741425052848,0.6356,2136.4,2135.9,3.58104]
[1741425053053,0.93635,2136.2,2135.9,2.6446]
[1741425053358,0.93635,2136.2,2136.0,0.93639]
[1741425053547,0.93635,2136.2,2136.0,0.6613]
[1741425053746,1.57982152,2136.3,2136.0,1.59769]
[1741425054657,1.57982152,2136.3,2136.0,1.59768]
[1741425055154,1.57983152,2136.3,2136.0,1.59769]
[1741425056457,0.93634,2136.2,2136.0,0.6613]
[1741425057544,0.64353152,2136.3,2136.0,1.59769]
[1741425057749,1.57982152,2136.3,2136.0,1.59769]
[1741425058853,0.93635,2136.2,2136.0,0.6613]
[1741425059058,1.54485,2136.2,2136.0,0.6613]
[1741425059757,0.6323,2136.1,2136.0,0.6613]
[1741425060058,1.54485,2136.2,2136.0,0.6613]
[1741425060261,0.93636,2136.1,2136.0,0.6613]
[1741425061258,1.2408,2136.2,2136.0,0.6613]
[1741425061758,2.17714,2136.2,2136.0,0.6613]
[1741425062358,0.6323,2136.2,2136.0,0.6613]
[1741425062655,0.00703152,2136.3,2136.0,0.6613]
[1741425063159,0.00703152,2136.3,2136.2,0.93631]
[1741425065561,0.00703152,2136.3,2136.0,3.8691]
[1741425065757,0.94332152,2136.3,2136.0,4.80547]
[1741425065957,0.94332152,2136.3,2136.1,0.93635]
[1741425066360,0.00703152,2136.3,2136.1,0.93635]
[1741425066755,0.00703152,2136.3,2136.0,3.8691]
[1741425067052,0.00703152,2136.3,2136.2,0.93631]
[1741425067252,0.00703152,2136.3,2136.0,3.8691]
[1741425067457,0.00703152,2136.3,2136.1,0.93632]
[1741425068065,0.94331152,2136.3,2136.0,3.8691]
[1741425068268,0.94331152,2136.3,2136.1,0.93635]
[1741425068461,0.00703152,2136.3,2136.1,0.93635]
[1741425068967,0.94330152,2136.3,2136.1,0.93635]
[1741425069465,0.94330152,2136.3,2136.0,3.8691]
[1741425069466,0.00703152,2136.3,2136.0,3.8691]
[1741425069758,0.00703152,2136.3,2136.1,0.93636]
[1741425070066,0.00703152,2136.3,2136.2,0.6365]
[1741425070565,0.94330152,2136.3,2136.2,0.6365]
[1741425070961,0.00703152,2136.3,2136.2,0.6365]
[1741425071658,0.00703152,2136.3,2136.2,1.57281]
[1741425074766,0.631,2136.5,2136.2,0.6365]
[1741425074967,0.631,2136.5,2136.4,0.93622]
[1741425077065,0.631,2136.5,2136.3,1.3012]
[1741425077263,0.631,2136.5,2136.3,2.23745]
[1741425077464,3.2078,2136.9,2136.4,5.54837]
[1741425077763,0.6175,2136.8,2136.4,3.2078]
[1741425077966,0.9359,2137.2,2136.5,2.34042]
[1741425078172,0.9359,2137.2,2136.9,0.93598]
[1741425078173,1.6064,2137.2,2136.9,0.93598]
[1741425078373,0.6705,2137.2,2137.0,1.292]
[1741425078669,0.6705,2137.2,2137.0,2.22796]
[1741425078965,0.6705,2137.2,2137.1,0.93592]
[1741425079171,0.6705,2137.2,2137.0,1.292]
[1741425079462,0.93579,2137.4,2137.1,0.9359]
[1741425080270,0.6705,2137.5,2137.0,4.50683152]
[1741425080471,0.93583,2137.3,2137.0,5.44277152]
[1741425081371,0.93583,2137.3,2137.0,4.50683152]
[1741425081568,0.93583,2137.3,2137.0,5.44278152]
[1741425081771,0.93583,2137.3,2137.0,0.00703152]
[1741425081772,0.93592,2137.1,2137.0,0.00703152]
[1741425082166,4.0,2137.1,2136.4,3.2078]
[1741425082469,3.8558,2137.0,2136.4,3.2078]
[1741425082672,0.9361,2136.7,2136.5,0.93616]
[1741425082871,2.015,2136.8,2136.2,1.278]
[1741425083072,0.6108,2136.7,2136.2,1.278]
[1741425083274,0.93615,2136.6,2136.4,0.00703152]
[1741425083472,0.93615,2136.6,2136.4,0.94325152]
[1741425083672,0.93615,2136.6,2136.4,0.00703152]
[1741425084864,1.58415,2136.6,2136.4,0.00703152]
[1741425085774,0.648,2136.6,2136.4,0.00703152]
[1741425085977,0.6606,2136.7,2136.4,4.15102152]
[1741425086165,1.5967,2136.7,2136.5,0.6709]
[1741425086471,2.02203152,2136.8,2136.5,1.60706]
[1741425086472,0.00703152,2136.8,2136.5,1.60706]
[1741425086669,0.00703152,2136.8,2136.6,1.2807]
[1741425087073,0.00703152,2136.8,2136.6,2.21682]
[1741425087470,0.00703152,2136.8,2136.6,1.2807]
[1741425087672,0.94309152,2136.8,2136.6,1.2807]
[1741425088679,0.00703152,2136.8,2136.6,1.2807]
[1741425088974,0.00703152,2136.8,2136.5,0.6709]
[1741425089275,0.93611,2136.7,2136.5,0.6709]
[1741425089778,1.55011,2136.7,2136.5,0.6709]
[1741425090779,0.614,2136.7,2136.4,3.21483152]
[1741425091179,1.55013,2136.7,2136.4,4.15104152]
[1741425091380,0.93618,2136.6,2136.4,3.21483152]
[1741425091577,1.57938,2136.6,2136.4,3.21483152]
[1741425091779,1.55009,2136.7,2136.5,0.93618]
[1741425091979,1.55009,2136.7,2136.5,1.59598]
[1741425092182,0.614,2136.7,2136.5,0.6598]
[1741425092377,0.00703152,2136.8,2136.6,0.6172]
[1741425092682,0.94308152,2136.8,2136.7,0.6223]
[1741425096784,0.93614,2136.7,2136.5,0.6598]
[1741425096983,0.93618,2136.5,2136.4,0.00703152]
[1741425097375,3.62098,2136.5,2136.4,0.00703152]
[1741425099090,7.0615045,2136.5,2135.8,1.9342]
[1741425099295,3.2078,2136.2,2135.8,1.9342]
[1741425099493,0.93643,2136.0,2135.8,1.9342]
[1741425100095,0.9364,2136.0,2135.8,1.9342]
[1741425101098,0.93643,2136.0,2135.8,1.9342]
[1741425101599,0.93643,2136.0,2135.8,2.87068]
[1741425101794,0.93643,2136.0,2135.8,1.9342]
[1741425104696,1.9961,2136.1,2135.8,1.9342]
[1741425104896,0.93644,2135.9,2135.8,1.9342]
[1741425106999,0.93649,2135.8,2135.7,0.00703152]
[1741425107203,4.14429,2135.8,2135.7,0.00703152]
[1741425113506,0.93649,2135.8,2135.7,0.00703152]
[1741425114098,4.14429,2135.8,2135.7,0.00703152]
[1741425116102,2.016,2135.9,2135.7,0.94354152]
[1741425116401,2.95245,2135.9,2135.8,1.9099]
[1741425117804,0.93643,2136.0,2135.8,1.9099]
[1741425118407,6.16018,2136.1,2135.8,2.84635]
[1741425118601,3.2436,2136.3,2135.8,1.9099]
[1741425118806,0.93636,2136.1,2135.9,0.93643]
[1741425119206,0.93634,2136.2,2135.9,0.93643]
[1741425120211,2.6279,2136.3,2135.8,1.9099]
[1741425120416,3.56421,2136.3,2136.0,0.93639]
[1741425120605,0.93631,2136.2,2136.0,0.93639]
[1741425121412,3.5642,2136.3,2136.0,0.93639]
[1741425122614,0.9363,2136.3,2135.8,1.9099]
[1741425122818,0.93625,2136.4,2136.1,0.93634]
[1741425123010,0.93625,2136.4,2136.2,1.8917]
[1741425123514,0.93627,2136.3,2136.2,1.8917]
[1741425124113,6.4914,2136.5,2136.2,1.8917]
[1741425124317,6.4914,2136.5,2136.2,2.82801]
[1741425124318,0.93625,2136.4,2136.2,2.82801]
[1741425124612,4.144,2136.5,2136.3,0.93625]
[1741425124803,3.2078,2136.5,2136.2,1.8917]
[1741425125009,0.93626,2136.4,2136.2,2.82801]
[1741425125218,3.2078,2136.5,2136.2,1.8917]
[1741425125418,0.93623,2136.4,2136.2,2.82798]
[1741425125809,0.93623,2136.4,2136.2,1.8917]
[1741425126011,0.93623,2136.4,2136.2,2.82798]
[1741425126210,0.93623,2136.4,2136.2,1.8917]
[1741425126519,3.2078,2136.5,2136.3,0.93627]
[1741425127018,4.14401,2136.5,2136.3,0.93627]
[1741425127521,0.93622,2136.4,2136.3,0.93627]
[1741425127713,0.93622,2136.4,2136.2,2.828]
[1741425127914,4.14402,2136.5,2136.3,0.93625]
[1741425128420,3.2078,2136.5,2136.2,1.8917]
[1741425128920,2.3406,2136.4,2135.7,3.21483152]
[1741425129117,0.9364,2136.0,2135.9,0.6617]
[1741425129915,0.9364,2136.0,2135.9,1.59814]
[1741425130218,0.93633,2136.2,2136.0,0.93638]
[1741425130415,0.93633,2136.2,2136.1,0.6341]
[1741425135216,0.6285,2136.4,2136.1,0.6341]
[1741425135426,3.2078,2136.5,2136.2,0.6366]
[1741425135725,4.14401,2136.5,2136.3,1.60294]
[1741425136125,4.14401,2136.5,2136.4,0.6494]
[1741425136627,0.93621,2136.5,2136.4,0.6494]
[1741425138128,5.23083152,2136.8,2136.6,0.9361]
[1741425138327,6.16688152,2136.8,2136.7,1.2459]
[1741425138528,0.93616,2136.6,2136.4,0.6494]
[1741425138729,0.93616,2136.6,2136.5,1.2459]
[1741425139430,0.93613,2136.7,2136.5,1.2459]
[1741425139635,0.93614,2136.6,2136.5,1.2459]
[1741425141631,5.23083152,2136.8,2136.5,1.2459]
[1741425141824,0.93611,2136.7,2136.5,2.18208]
[1741425142022,0.93614,2136.6,2136.5,1.2459]
[1741425142523,5.23083152,2136.8,2136.3,3.2078]
[1741425142729,0.9362,2136.5,2136.4,1.9024]
[1741425144233,0.616,2136.7,2136.3,3.2078]
[1741425144530,7.57103152,2136.8,2135.9,2.23893]
[1741425144531,1.2633,2136.4,2135.9,2.23893]
[1741425144731,0.93639,2136.1,2135.9,2.23893]
[1741425145331,0.6097,2136.3,2135.9,1.3025]
[1741425145527,1.2633,2136.4,2136.0,0.93637]
[1741425145528,0.93632,2136.2,2136.0,0.93637]
[1741425146131,0.93637,2136.1,2135.9,2.23892]
[1741425146326,0.9364,2136.0,2135.9,1.3025]
[1741425146633,0.93639,2136.1,2135.9,1.3025]
[1741425147832,0.93635,2136.2,2135.9,2.23891]
[1741425148033,1.2633,2136.4,2135.9,2.23891]
[1741425148230,0.93636,2136.1,2135.9,2.23891]
[1741425148432,0.93636,2136.1,2135.9,1.3025]
[1741425149126,0.93636,2136.1,2135.9,2.23893]
[1741425149436,0.93636,2136.1,2135.9,1.3025]
[1741425149629,0.93639,2136.1,2135.9,1.3025]
[1741425149934,1.2633,2136.4,2135.9,1.3025]
[1741425150737,0.93628,2136.3,2136.1,0.93634]
[1741425150938,0.93628,2136.3,2136.2,0.6546]
[1741425151636,1.2633,2136.4,2136.2,0.6546]
[1741425151937,2.19956,2136.4,2136.2,0.6546]
[1741425152133,2.19957,2136.4,2136.2,0.6546]
[1741425152327,1.2633,2136.4,2136.2,0.6546]
[1741425152635,0.93627,2136.3,2136.2,0.6546]
[1741425153532,1.2633,2136.4,2136.2,0.6546]
[1741425153737,3.2078,2136.5,2136.2,3.8624]
[1741425153934,3.2078,2136.5,2136.4,0.93622]
[1741425154534,3.2078,2136.5,2136.3,2.23614]
[1741425155042,0.93621,2136.5,2136.3,1.2999]
[1741425155938,3.2642,2136.7,2136.3,1.2999]
[1741425156128,0.93622,2136.4,2136.3,1.2999]
[1741425157339,0.93622,2136.4,2136.3,0.6614]
[1741425157535,0.6375,2136.5,2136.2,0.6546]
[1741425157739,0.93627,2136.3,2136.2,0.6546]
[1741425157942,0.9364,2136.0,2135.9,3.2078]
[1741425158134,0.9364,2136.0,2135.9,3.8701]
[1741425158537,1.259,2136.2,2135.9,3.8701]
[1741425159043,0.9364,2136.1,2135.9,3.8701]
[1741425159539,1.259,2136.2,2135.9,3.8701]
[1741425159846,0.93644,2135.9,2135.8,1.2639]
[1741425160146,1.259,2136.2,2135.7,0.66933152]
[1741425160147,0.93649,2135.8,2135.7,0.66933152]
[1741425160739,0.93649,2135.8,2135.7,0.00703152]
[1741425161245,2.21449,2135.8,2135.7,0.00703152]
[1741425161841,6.21449,2135.8,2135.7,0.00703152]
[1741425162545,0.93675,2135.2,2135.1,0.6573]
[1741425163443,1.58583,2135.3,2135.1,0.6573]
[1741425163644,0.93673,2135.3,2135.1,0.6573]
[1741425163847,3.21483152,2135.4,2135.1,0.6573]
[1741425164153,0.93671,2135.3,2135.2,0.6264]
[1741425165435,0.93675,2135.2,2135.1,0.6573]
[1741425170852,0.65573152,2135.4,2135.1,0.6573]
[1741425171049,0.93671,2135.3,2135.1,1.59409]
[1741425171355,0.93672,2135.3,2135.1,1.59408]
[1741425171548,0.93675,2135.2,2135.1,0.6573]
[1741425171749,0.93673,2135.3,2135.1,1.59408]
[1741425171953,0.93675,2135.2,2135.1,0.6573]
[1741425172151,0.00703152,2135.4,2135.1,0.6573]
[1741425172555,0.93673,2135.3,2135.1,0.6573]
[1741425172756,0.93673,2135.3,2135.1,1.59409]
[1741425173057,0.93675,2135.2,2135.1,0.6573]
[1741425175560,0.93672,2135.3,2135.1,1.59408]
[1741425176057,0.93675,2135.2,2135.1,0.6573]
[1741425177360,0.00703152,2135.4,2135.1,0.6573]
[1741425177658,0.93675,2135.2,2135.1,0.6573]
[1741425179561,0.00703152,2135.4,2135.1,0.6573]
[1741425179764,0.94374152,2135.4,2135.1,1.59408]
[1741425180165,0.93671,2135.3,2135.1,1.59408]
[1741425180668,0.94372152,2135.4,2135.1,1.59408]
[1741425181963,0.94372152,2135.4,2135.2,0.6561]
[1741425182164,0.93671,2135.3,2135.2,0.6561]
[1741425182364,0.93675,2135.2,2135.1,0.6573]
[1741425184356,0.93675,2135.2,2135.0,3.2078]
[1741425184565,0.93684,2135.0,2134.9,0.00703152]
[1741425184866,4.14464,2135.0,2134.9,0.00703152]
[1741425185261,1.56014,2135.0,2134.9,0.00703152]
[1741425185460,0.93684,2135.0,2134.9,0.00703152]
[1741425186365,2.016,2135.2,2134.9,0.94390152]
[1741425186565,0.93681,2135.1,2135.0,1.2488]
[1741425187465,2.016,2135.2,2134.9,0.00703152]
[1741425187660,0.93684,2135.0,2134.9,0.00703152]
[1741425189666,0.93682,2135.1,2134.9,0.00703152]
[1741425189869,4.5115,2135.3,2134.9,0.00703152]
[1741425190070,2.66643152,2135.4,2134.9,0.00703152]
[1741425190265,0.93672,2135.3,2134.9,0.00703152]
[1741425190676,2.66643152,2135.4,2135.0,0.93681]
[1741425190869,2.66643152,2135.4,2135.1,1.3026]
[1741425191069,0.93671,2135.3,2135.2,0.6489]
[1741425191370,4.14451,2135.3,2135.2,0.6489]
[1741425191568,0.93675,2135.2,2135.1,1.3026]
[1741425191968,0.93675,2135.2,2135.1,0.6646]
[1741425195776,0.93679,2135.1,2135.0,0.6092]
[1741425197780,0.93679,2135.1,2135.0,1.2664]
[1741425198172,0.93678,2135.2,2135.0,1.2664]
[1741425198369,1.2765,2135.3,2135.0,1.2664]
[1741425198783,2.66643152,2135.4,2135.0,1.2664]
[1741425198977,2.66643152,2135.4,2135.1,0.93676]
[1741425198978,3.60312152,2135.4,2135.1,0.93676]
[1741425199575,1.58712152,2135.4,2135.0,1.2664]
[1741425199985,1.58712152,2135.4,2135.1,0.93675]
[1741425200293,0.65043152,2135.4,2135.1,0.93675]
[1741425200679,1.58711152,2135.4,2135.2,0.93674]
[1741425201294,1.58711152,2135.4,2135.3,0.6503]
[1741425202190,0.00703152,2135.4,2135.3,0.6503]
[1741425202493,0.00703152,2135.4,2135.3,1.58701]
[1741425203693,0.6129,2135.8,2135.5,0.93658]
[1741425203694,1.5494,2135.8,2135.5,0.93658]
[1741425203893,1.5494,2135.8,2135.6,0.6503]
[1741425204085,1.5494,2135.8,2135.6,1.58687]
[1741425204481,1.5494,2135.8,2135.6,0.6503]
[1741425204692,0.93653,2135.7,2135.6,0.6503]
[1741425204893,1.54943,2135.8,2135.6,0.6503]
[1741425205487,1.54943,2135.8,2135.6,1.58686]
[1741425205687,1.54943,2135.8,2135.6,0.6503]
[1741425206490,0.6129,2135.8,2135.6,0.6503]
[1741425206687,0.93653,2135.7,2135.6,0.6503]
[1741425206888,1.54941,2135.8,2135.6,0.6503]
[1741425207599,1.54941,2135.8,2135.6,1.58686]
[1741425207895,0.93653,2135.7,2135.6,0.6503]
[1741425208091,0.93662,2135.5,2135.4,4.4299]
[1741425208283,0.93662,2135.5,2135.4,0.6157]
[1741425209392,0.6129,2135.8,2135.4,0.6157]
[1741425209583,0.6129,2135.8,2135.4,1.55234]
[1741425209897,0.9367,2135.4,2135.1,4.80647]
[1741425210194,0.93668,2135.4,2135.2,1.54624]
[1741425210584,0.93675,2135.2,2135.1,3.8471]
[1741425210789,0.6277,2135.3,2134.9,0.00703152]
[1741425210991,0.93683,2135.1,2134.9,0.00703152]
[1741425211193,1.2967,2135.2,2134.9,0.00703152]
[1741425211396,0.93684,2135.0,2134.9,0.00703152]
[1741425213597,2.95284,2135.0,2134.9,0.00703152]
[1741425228808,2.95384,2135.0,2134.9,0.00703152]
[1741425231807,4.14463,2135.1,2134.9,0.94391152]
[1741425232002,0.93679,2135.1,2135.0,0.6116]
[1741425234809,0.93684,2135.0,2134.9,0.00703152]
[1741425244216,1.79188956,2135.0,2134.9,0.00703152]
[1741425244707,2.91660928,2135.0,2134.9,0.00703152]
[1741425245017,0.93693,2134.8,2134.7,1.2156]
[1741425245207,6.16073,2134.8,2134.7,1.2156]
[1741425246114,0.93715,2134.3,2134.2,3.2078]
[1741425246320,0.93719,2134.2,2134.1,1.2567]
[1741425247117,0.00703152,2134.5,2134.1,1.2567]
[1741425247414,2.016,2134.4,2134.1,1.2567]
[1741425247718,0.9371,2134.4,2134.3,0.93715]
[1741425247913,0.00703152,2134.5,2134.3,0.93715]
[1741425247914,0.94412152,2134.5,2134.3,0.93715]
[1741425248214,0.94412152,2134.5,2134.4,0.6183]
[1741425249916,0.00703152,2134.5,2134.4,1.5554]
[1741425250114,0.94409152,2134.5,2134.4,0.6183]
[1741425250314,0.94409152,2134.5,2134.4,1.5554]
[1741425250515,0.00703152,2134.5,2134.4,1.5554]
[1741425250821,0.94409152,2134.5,2134.4,0.6183]
[1741425255020,0.94409152,2134.5,2134.4,1.5554]
[1741425255518,0.94409152,2134.5,2134.4,0.6183]
[1741425255519,0.00703152,2134.5,2134.4,0.6183]
[1741425255715,0.00703152,2134.5,2134.4,1.5554]
[1741425261525,3.2078,2135.1,2134.8,0.9369]
[1741425261719,2.95384,2135.0,2134.9,1.3191]
[1741425262028,2.95384,2135.0,2134.9,1.9726]
[1741425262728,0.93684,2135.0,2134.9,1.9726]
[1741425263026,0.93681,2135.1,2134.9,2.90946]
[1741425263226,2.96081152,2135.2,2135.0,0.93681]
[1741425265127,2.96081152,2135.2,2134.9,2.90946]
[1741425265128,0.93679,2135.1,2134.9,2.90946]
[1741425265727,2.96080152,2135.2,2134.9,1.9726]
[1741425265929,2.02403152,2135.2,2134.9,1.9726]
[1741425266228,2.96081152,2135.2,2135.0,0.93684]
[1741425266920,2.02403152,2135.2,2135.1,0.93679]
[1741425267130,2.96078152,2135.2,2135.0,0.9368]
[1741425267522,2.96078152,2135.2,2135.1,0.93679]
[1741425267523,0.00703152,2135.2,2135.1,0.93679]
[1741425267827,0.93663,2135.5,2135.3,0.93669]
[1741425268030,0.93663,2135.5,2135.4,1.9342]
[1741425268427,3.62361,2135.6,2135.4,2.87086]
[1741425268629,2.95261,2135.6,2135.4,2.87086]
[1741425268927,2.95257,2135.6,2135.4,2.87084]
[1741425269129,2.016,2135.6,2135.4,2.87084]
[1741425269329,2.9526,2135.6,2135.4,2.87084]
[1741425269732,2.016,2135.6,2135.4,2.87084]
[1741425269934,0.00703152,2135.7,2135.5,0.93662]
[1741425269935,0.94356152,2135.7,2135.5,0.93662]
[1741425270124,0.00703152,2135.7,2135.4,5.142]
[1741425270324,0.00703152,2135.7,2135.6,0.93657]
[1741425273133,0.94356152,2135.7,2135.5,0.9366]
[1741425273333,0.93661,2135.6,2135.4,5.142]
[1741425273536,0.9366,2135.6,2135.4,6.07865]
[1741425273730,0.93658,2135.6,2135.4,6.07863]
[1741425274433,0.93666,2135.4,2135.3,0.00703152]
[1741425275129,0.93699,2134.7,2134.5,6.16084]
[1741425275326,0.93695,2134.8,2134.5,6.77254]
[1741425275526,0.93695,2134.8,2134.5,5.8355]
[1741425275732,0.93695,2134.8,2134.5,6.77253]
[1741425275924,0.93695,2134.8,2134.5,4.75653]
[1741425276435,0.6146,2135.0,2134.5,3.8195]
[1741425276637,0.93683,2135.1,2134.6,0.6644]
[1741425276937,2.95278,2135.2,2134.9,0.93688]
[1741425277338,0.93681,2135.1,2134.9,0.93688]
[1741425277541,2.016,2135.2,2135.1,0.93679]
[1741425278241,2.016,2135.2,2135.0,1.259]
[1741425278242,2.95275,2135.2,2135.0,1.259]
[1741425278630,2.016,2135.2,2135.0,2.19581]
[1741425279037,2.016,2135.2,2135.0,1.259]
[1741425279440,2.016,2135.2,2135.0,2.19583]
[1741425279740,2.016,2135.2,2135.1,0.93679]
[1741425279940,0.6146,2135.3,2135.1,0.93679]
[1741425280340,1.55131,2135.3,2135.1,0.93679]
[1741425280742,0.6146,2135.3,2135.1,0.93679]
[1741425282448,0.623,2135.4,2135.0,1.259]
[1741425282747,2.22998,2135.4,2135.2,0.93675]
[1741425283046,0.93671,2135.3,2135.1,0.93676]
[1741425284443,0.93671,2135.3,2135.0,1.259]
[1741425284648,0.93679,2135.1,2135.0,1.259]
[1741425285243,0.93684,2135.0,2134.9,3.2078]
[1741425285442,0.93684,2135.0,2134.8,2.26123]
[1741425286948,0.93684,2135.0,2134.8,1.3243]
[1741425287450,0.93684,2135.0,2134.8,2.26122]
[1741425288045,0.93683,2135.1,2134.9,0.93688]
[1741425288246,4.5011,2135.4,2134.9,0.93688]
[1741425288552,0.93672,2135.3,2135.1,0.93677]
[1741425288849,2.22999,2135.4,2134.9,3.2078]
[1741425289149,0.623,2135.4,2135.3,0.93671]
[1741425289343,0.93666,2135.5,2135.3,0.93671]
[1741425289948,0.93666,2135.4,2135.2,0.93673]
[1741425290144,0.93666,2135.4,2135.3,0.6381]
[1741425290349,0.93675,2135.2,2135.0,0.93681]
[1741425290552,0.93675,2135.2,2135.0,1.57491]
[1741425291349,0.93675,2135.2,2135.0,0.6381]
[1741425291551,2.34155,2135.5,2134.9,3.2078]
[1741425291745,0.6091,2135.4,2134.9,3.2078]
[1741425291946,0.93683,2135.1,2134.9,3.2078]
[1741425292147,0.93683,2135.1,2134.9,4.14465]
[1741425292953,1.54368,2135.2,2134.9,3.2078]
[1741425293249,0.6316,2135.3,2135.2,0.93675]
[1741425293553,0.6091,2135.4,2134.9,3.2078]
[1741425293954,0.93671,2135.3,2135.1,0.93677]
[1741425294247,1.59021,2135.3,2135.1,0.93677]
[1741425294452,1.59022,2135.3,2135.1,0.93678]
[1741425295147,1.59021,2135.3,2135.1,0.93678]
[1741425295348,0.6427,2135.5,2134.9,3.2078]
[1741425295654,0.6427,2135.5,2134.8,3.63636]
[1741425295655,0.93668,2135.4,2135.2,4.14453]
[1741425296160,1.57934,2135.5,2135.3,0.93671]
[1741425296348,1.57934,2135.5,2135.3,2.17531]
[1741425297954,1.57934,2135.5,2135.3,2.82121]
[1741425298757,1.5564,2135.6,2135.4,0.93664]
[1741425300159,0.93663,2135.5,2135.3,2.82119]
[1741425300451,1.5564,2135.6,2135.4,0.93666]
[1741425301057,0.00703152,2135.7,2135.6,0.93657]
[1741425301550,0.00703152,2135.7,2135.4,0.93662]
[1741425301949,0.94360152,2135.7,2135.4,0.93662]
[1741425302156,0.94360152,2135.7,2135.3,1.8845]
[1741425302157,0.93663,2135.5,2135.3,2.82119]
[1741425302451,0.00703152,2135.7,2135.3,1.8845]
[1741425302658,0.93662,2135.6,2135.3,2.82118]
[1741425302860,0.00703152,2135.7,2135.3,1.8845]
[1741425303259,0.00703152,2135.7,2135.3,2.82118]
[1741425303260,0.93657,2135.6,2135.3,2.82118]
[1741425303457,0.93657,2135.6,2135.3,1.8845]
[1741425303860,0.64903152,2135.7,2135.3,2.82118]
[1741425304161,0.64903152,2135.7,2135.3,1.8845]
[1741425304360,1.58558152,2135.7,2135.5,0.9366]
[1741425304559,1.58558152,2135.7,2135.3,1.8845]
[1741425304762,1.58558152,2135.7,2135.5,0.9366]
[1741425304951,0.00703152,2135.7,2135.5,0.9366]
[1741425305153,0.94358152,2135.7,2135.6,0.665]
[1741425306059,0.93657,2135.6,2135.3,2.19098]
[1741425306260,0.93657,2135.6,2135.4,0.665]
[1741425306562,0.93657,2135.6,2135.4,1.60165]
[1741425307261,0.00703152,2135.7,2135.4,0.665]